bitfinex/quotes_BTCUSD_20240906
["timestamp","ask_amount","ask_price","bid_price","bid_amount"]
[1725665796131,0.000815,53950.0,53949.0,1.69574417]
[1725665796603,0.000815,53950.0,53949.0,1.69374417]
[1725665796828,0.000815,53950.0,53949.0,1.69674417]
[1725665797303,0.02987154,53950.0,53949.0,1.69674417]
[1725665799052,0.02987154,53950.0,53949.0,1.22205135]
[1725665800441,0.185332,53957.0,53956.0,0.002]
[1725665800901,0.185332,53957.0,53956.0,0.022]
[1725665800902,0.19926145,53957.0,53956.0,0.022]
[1725665801104,0.19926145,53957.0,53956.0,0.045]
[1725665801526,0.19926145,53957.0,53956.0,0.05165135]
[1725665801527,0.01392945,53957.0,53956.0,0.05165135]
[1725665801736,0.01392945,53957.0,53956.0,0.06565135]
[1725665802475,0.01892945,53957.0,53956.0,0.06565135]
[1725665802692,0.03635845,53957.0,53956.0,0.06565135]
[1725665803579,0.03635845,53957.0,53956.0,0.19465135]
[1725665805513,0.022429,53957.0,53956.0,0.19465135]
[1725665806152,0.03635845,53957.0,53956.0,0.19465135]
[1725665806575,0.01892945,53957.0,53956.0,1.33222448]
[1725665806797,0.03635826,53957.0,53956.0,1.33222448]
[1725665807700,0.36309388,53960.0,53959.0,0.002]
[1725665807919,0.54841588,53960.0,53959.0,1.15957313]
[1725665808116,0.57747223,53960.0,53959.0,1.18257313]
[1725665808331,0.54841588,53960.0,53959.0,1.18257313]
[1725665808777,0.185322,53960.0,53959.0,1.18257313]
[1725665809029,0.185322,53960.0,53959.0,1.19657313]
[1725665811029,0.008,53960.0,53959.0,1.8641733]
[1725665811291,0.008,53960.0,53959.0,2.0973733]
[1725665811809,0.008,53960.0,53959.0,2.4680243]
[1725665812254,0.008,53960.0,53959.0,2.36405148]
[1725665813993,0.008,53960.0,53959.0,1.38954948]
[1725665814216,0.008,53960.0,53959.0,1.76020048]
[1725665814416,0.008,53960.0,53959.0,1.20422448]
[1725665814417,0.20503842,53960.0,53959.0,1.20422448]
[1725665816534,0.01971642,53960.0,53959.0,1.20422448]
[1725665818439,0.20503842,53960.0,53959.0,1.20422448]
[1725665819570,0.370623,53964.0,53959.0,1.20422448]
[1725665819791,0.1032,53965.0,53960.0,0.023]
[1725665819792,0.370638,53961.0,53960.0,0.023]
[1725665820042,0.370638,53961.0,53960.0,0.043]
[1725665820043,0.38806676,53961.0,53960.0,0.043]
[1725665820262,0.20274776,53961.0,53960.0,0.045]
[1725665820474,0.94402376,53961.0,53960.0,0.045]
[1725665820682,0.57338576,53961.0,53960.0,0.045]
[1725665821141,0.58238576,53961.0,53960.0,0.046]
[1725665821626,0.58238576,53961.0,53960.0,1.18357313]
[1725665822108,0.564957,53961.0,53960.0,1.18357313]
[1725665822324,0.58238586,53961.0,53960.0,1.18357313]
[1725665822540,0.02642886,53961.0,53960.0,1.19657313]
[1725665822771,0.21174786,53961.0,53960.0,1.19657313]
[1725665824045,0.02642886,53961.0,53960.0,1.19657313]
[1725665824472,0.21174786,53961.0,53960.0,1.19657313]
[1725665825411,0.2117486,53961.0,53960.0,1.19657313]
[1725665825630,0.22917816,53961.0,53960.0,1.19657313]
[1725665825843,0.22917816,53961.0,53960.0,1.19457313]
[1725665826060,0.194319,53961.0,53960.0,1.19457313]
[1725665827544,0.194319,53961.0,53960.0,1.19657313]
[1725665829848,0.2233739,53961.0,53960.0,1.19657313]
[1725665830532,0.2233739,53961.0,53960.0,1.19457313]
[1725665830533,0.0380549,53961.0,53960.0,1.19457313]
[1725665830972,0.0380549,53961.0,53960.0,1.42782448]
[1725665830973,0.009,53961.0,53960.0,1.42782448]
[1725665831190,0.009,53961.0,53960.0,1.61314648]
[1725665831406,0.009,53961.0,53960.0,1.98379048]
[1725665832693,0.009815,53961.0,53960.0,1.98379048]
[1725665833532,0.009815,53961.0,53960.0,2.4584073]
[1725665833737,0.009815,53961.0,53960.0,2.35443448]
[1725665834150,0.009815,53961.0,53960.0,2.4584073]
[1725665835605,0.009815,53961.0,53960.0,2.4454073]
[1725665836045,0.03886766,53961.0,53960.0,2.4594073]
[1725665836658,0.02986766,53961.0,53960.0,2.4584073]
[1725665836886,0.000815,53967.0,53966.0,0.58455535]
[1725665837121,0.000815,53967.0,53966.0,1.30673117]
[1725665837791,0.01824074,53967.0,53966.0,1.30673117]
[1725665838027,0.000815,53967.0,53966.0,1.30673117]
[1725665838455,0.02986514,53967.0,53966.0,1.30473117]
[1725665838902,0.02986514,53967.0,53966.0,1.31873117]
[1725665839558,0.02986514,53967.0,53966.0,1.30473117]
[1725665839771,0.02986514,53967.0,53966.0,1.31873117]
[1725665840979,0.02986514,53967.0,53966.0,1.69133417]
[1725665841203,0.02986514,53967.0,53966.0,1.68933417]
[1725665841423,0.02986514,53967.0,53966.0,1.67733417]
[1725665841639,0.02986514,53967.0,53966.0,1.69133417]
[1725665841856,0.02986514,53967.0,53966.0,1.68933417]
[1725665842062,0.000815,53967.0,53966.0,1.68933417]
[1725665842280,0.000815,53976.0,53975.0,0.14945135]
[1725665842502,0.000815,53976.0,53975.0,1.28034182]
[1725665842722,0.000815,53976.0,53975.0,1.27834182]
[1725665842957,0.000815,53976.0,53975.0,1.46361182]
[1725665843209,0.000815,53976.0,53975.0,1.83615282]
[1725665843418,0.000815,53976.0,53975.0,1.83415282]
[1725665843646,0.000815,53976.0,53975.0,1.83615282]
[1725665844580,0.000815,53976.0,53975.0,1.83715282]
[1725665844791,0.000815,53976.0,53975.0,1.83615282]
[1725665845022,0.000815,53976.0,53975.0,1.83715282]
[1725665845245,0.000815,53976.0,53975.0,1.83515282]
[1725665846574,0.000815,53976.0,53975.0,1.95755282]
[1725665847054,0.000815,53976.0,53975.0,1.95555282]
[1725665847257,0.01823826,53976.0,53975.0,1.95555282]
[1725665847691,0.01823826,53976.0,53975.0,1.47961182]
[1725665848196,0.185246,53982.0,53981.0,0.022]
[1725665848435,0.185246,53982.0,53981.0,1.14889047]
[1725665848875,0.2142928,53982.0,53981.0,1.14889047]
[1725665849303,0.5847898,53982.0,53981.0,1.15089047]
[1725665849521,0.0290468,53982.0,53981.0,1.34279182]
[1725665849733,0.0290468,53982.0,53981.0,1.71329182]
[1725665849958,0.0290468,53982.0,53981.0,1.28424182]
[1725665850673,0.3123928,53982.0,53981.0,1.15554182]
[1725665850920,0.6828858,53982.0,53981.0,1.15554182]
[1725665851121,0.6828858,53982.0,53981.0,1.15654182]
[1725665851338,0.6828858,53982.0,53981.0,1.15554182]
[1725665851774,0.6828858,53982.0,53981.0,1.16954182]
[1725665851997,0.653839,53982.0,53981.0,1.16954182]
[1725665852229,0.653839,53982.0,53981.0,1.15754182]
[1725665852443,0.653839,53982.0,53981.0,1.16954182]
[1725665853286,0.658839,53982.0,53981.0,1.17054182]
[1725665853723,0.658839,53982.0,53981.0,1.16854182]
[1725665853948,0.658839,53982.0,53981.0,1.17054182]
[1725665854156,0.658839,53982.0,53981.0,1.16854182]
[1725665854367,0.658839,53982.0,53981.0,1.17054182]
[1725665854574,0.658839,53982.0,53981.0,1.16854182]
[1725665855019,0.005,53982.0,53981.0,1.40464182]
[1725665855232,0.190246,53982.0,53981.0,1.40464182]
[1725665855948,0.190246,53982.0,53981.0,1.39264182]
[1725665856192,0.190246,53982.0,53981.0,1.40664182]
[1725665856414,0.185246,53982.0,53981.0,1.40564182]
[1725665856636,0.186064,53983.0,53982.0,0.02365135]
[1725665856858,0.556551,53983.0,53982.0,0.04665135]
[1725665857073,0.654651,53983.0,53982.0,0.04665135]
[1725665857718,0.654651,53983.0,53982.0,0.04465135]
[1725665857940,0.654651,53983.0,53982.0,0.04665135]
[1725665858157,0.659651,53983.0,53982.0,0.04765135]
[1725665858371,0.68869532,53983.0,53982.0,0.06065135]
[1725665858588,0.22010832,53983.0,53982.0,0.05865135]
[1725665858805,0.22010832,53983.0,53982.0,0.06065135]
[1725665860142,0.03486432,53983.0,53982.0,0.36554394]
[1725665860355,0.03486432,53983.0,53982.0,1.35178782]
[1725665861027,0.02986432,53983.0,53982.0,1.33778782]
[1725665861449,0.02986432,53983.0,53982.0,1.35178782]
[1725665861880,0.21510732,53983.0,53982.0,1.16454182]
[1725665862113,0.65465,53983.0,53982.0,1.16454182]
[1725665862588,0.65465,53983.0,53982.0,1.15054182]
[1725665862806,0.65465,53983.0,53982.0,1.16454182]
[1725665863028,0.65465,53983.0,53982.0,1.16654182]
[1725665863239,0.67207221,53983.0,53982.0,1.16654182]
[1725665864136,0.65465,53983.0,53982.0,1.15254182]
[1725665864560,0.65465,53983.0,53982.0,1.16654182]
[1725665864976,0.65465,53983.0,53982.0,1.15254182]
[1725665865419,0.65465,53983.0,53982.0,1.16554182]
[1725665866088,0.65465,53983.0,53982.0,1.16654182]
[1725665867521,0.68369529,53983.0,53982.0,1.16654182]
[1725665867746,0.58559529,53983.0,53982.0,1.16654182]
[1725665867958,0.58559529,53983.0,53982.0,1.16454182]
[1725665868178,0.58559529,53983.0,53982.0,1.16654182]
[1725665871926,0.58559529,53983.0,53982.0,1.16454182]
[1725665872144,0.55655,53983.0,53982.0,1.16454182]
[1725665873232,0.55655,53983.0,53982.0,1.16654182]
[1725665875418,0.55655,53983.0,53982.0,1.16454182]
[1725665876312,0.55655,53983.0,53982.0,1.16654182]
[1725665878308,0.58559458,53983.0,53982.0,1.16654182]
[1725665880465,0.21510758,53983.0,53982.0,1.26454182]
[1725665880919,0.21510758,53983.0,53982.0,1.26399482]
[1725665880920,0.186063,53983.0,53982.0,1.26399482]
[1725665883425,0.55655,53983.0,53982.0,1.16599482]
[1725665883677,0.186063,53983.0,53982.0,1.16599482]
[1725665883862,0.24169007,53983.0,53982.0,1.16599482]
[1725665884604,0.61217707,53983.0,53982.0,1.16599482]
[1725665884836,0.61217707,53983.0,53982.0,1.16399482]
[1725665885060,0.73984255,53983.0,53982.0,1.16599482]
[1725665885367,0.61217707,53983.0,53982.0,1.16599482]
[1725665885464,0.61217707,53983.0,53982.0,1.16399482]
[1725665885688,0.61217707,53983.0,53982.0,1.16599482]
[1725665885902,0.61217707,53983.0,53982.0,1.16399482]
[1725665886117,0.61217707,53983.0,53982.0,1.16599482]
[1725665886338,0.57397227,53983.0,53982.0,1.16599482]
[1725665887488,0.65747944,53983.0,53982.0,1.16599482]
[1725665887716,0.6574963,53983.0,53982.0,1.16599482]
[1725665888167,0.6574963,53983.0,53982.0,1.16399482]
[1725665888168,0.64007403,53983.0,53982.0,1.16399482]
[1725665889040,0.64007403,53983.0,53982.0,1.16599482]
[1725665889265,0.66911946,53983.0,53982.0,1.16399482]
[1725665889495,0.58559543,53983.0,53982.0,1.16399482]
[1725665890601,0.58559543,53983.0,53982.0,1.16599482]
[1725665890853,0.58559543,53983.0,53982.0,1.28579482]
[1725665891071,0.58559543,53983.0,53982.0,1.28779482]
[1725665892249,0.55655,53983.0,53982.0,1.28942282]
[1725665892476,0.6678929,53983.0,53982.0,1.28942282]
[1725665893651,0.55655,53983.0,53982.0,1.28942282]
[1725665893865,0.64013389,53983.0,53982.0,1.28942282]
[1725665894073,0.55655,53983.0,53982.0,1.28942282]
[1725665894943,0.64013884,53983.0,53982.0,1.28942282]
[1725665895167,0.55655,53983.0,53982.0,1.28942282]
[1725665895380,0.58559431,53983.0,53982.0,1.28942282]
[1725665895594,0.55655,53983.0,53982.0,1.28942282]
[1725665896474,0.186063,53983.0,53982.0,1.28942282]
[1725665897337,0.21510731,53983.0,53982.0,1.28942282]
[1725665898650,0.02986431,53983.0,53982.0,1.28942282]
[1725665899075,0.02986431,53983.0,53982.0,1.28742282]
[1725665899992,0.02986431,53983.0,53982.0,1.28942282]
[1725665900417,0.11345958,53983.0,53982.0,1.28942282]
[1725665900849,0.02986431,53983.0,53982.0,1.28942282]
[1725665901502,0.11345889,53983.0,53982.0,1.28942282]
[1725665901929,0.11345718,53983.0,53982.0,1.28942282]
[1725665902145,0.08441287,53983.0,53982.0,1.28942282]
[1725665903287,0.05572739,53983.0,53982.0,1.28942282]
[1725665903721,0.26882809,53985.0,53982.0,1.28942282]
[1725665903722,0.05572739,53984.0,53983.0,0.022]
[1725665903944,0.05572739,53984.0,53983.0,0.045]
[1725665905118,0.24096739,53984.0,53983.0,0.045]
[1725665905334,0.24896739,53984.0,53983.0,0.046]
[1725665905773,0.24896739,53984.0,53983.0,0.058]
[1725665906451,0.06372739,53984.0,53983.0,0.05910435]
[1725665907060,0.09277157,53984.0,53983.0,0.05910435]
[1725665907721,0.27801157,53984.0,53983.0,0.05710435]
[1725665907981,0.27801157,53984.0,53983.0,0.05910435]
[1725665908431,0.27801157,53984.0,53983.0,1.16499482]
[1725665908873,0.27801157,53984.0,53983.0,1.16299482]
[1725665909121,0.27801157,53984.0,53983.0,1.16499482]
[1725665909334,0.09277157,53984.0,53983.0,1.16499482]
[1725665910009,0.09277157,53984.0,53983.0,1.16299482]
[1725665910269,0.09277157,53984.0,53983.0,1.16499482]
[1725665910727,0.27801157,53984.0,53983.0,1.16499482]
[1725665912061,0.24896739,53984.0,53983.0,1.16499482]
[1725665913240,0.19324,53984.0,53983.0,1.16499482]
[1725665913446,0.24896739,53984.0,53983.0,1.16499482]
[1725665913892,0.19324,53984.0,53983.0,1.16499482]
[1725665914854,0.008,53984.0,53983.0,1.16499482]
[1725665915302,0.19324,53984.0,53983.0,1.16499482]
[1725665915552,0.008,53984.0,53983.0,1.35023782]
[1725665915786,0.0637136,53984.0,53983.0,1.35023782]
[1725665915993,0.008,53984.0,53983.0,1.35023782]
[1725665916720,0.0370442,53984.0,53983.0,1.35023782]
[1725665917142,0.0370442,53984.0,53983.0,1.35186782]
[1725665920950,0.0927578,53984.0,53983.0,1.35186782]
[1725665921159,0.0370442,53984.0,53983.0,1.35186782]
[1725665922051,0.008,53984.0,53983.0,1.35186782]
[1725665922921,0.008,53984.0,53983.0,2.69412882]
[1725665924047,0.000815,53985.0,53984.0,0.9262]
[1725665924254,0.000815,53985.0,53984.0,1.2045]
[1725665924717,0.000815,53985.0,53984.0,1.57498]
[1725665925354,0.000815,53985.0,53984.0,1.57798]
[1725665925795,0.000815,53985.0,53984.0,1.57908435]
[1725665926225,0.000815,53985.0,53984.0,2.69897482]
[1725665927818,0.0557136,53998.0,53997.0,0.57668935]
[1725665928059,0.1018,54002.0,54000.0,0.002]
[1725665928060,0.00081,54001.0,54000.0,0.002]
[1725665928289,0.00081,54001.0,54000.0,0.022]
[1725665928578,0.00081,54001.0,54000.0,0.045]
[1725665929028,0.00081,54001.0,54000.0,0.036]
[1725665929281,0.02984513,54001.0,54000.0,0.036]
[1725665929747,0.03884513,54001.0,54000.0,0.037]
[1725665929962,0.03884513,54001.0,54000.0,0.042]
[1725665930846,0.02984513,54001.0,54000.0,0.041]
[1725665931129,0.21502613,54001.0,54000.0,0.036]
[1725665931339,0.21502613,54001.0,54000.0,0.037]
[1725665931551,0.21502613,54001.0,54000.0,0.048]
[1725665931765,0.23244195,54001.0,54000.0,0.048]
[1725665931978,0.23244195,54001.0,54000.0,0.036]
[1725665932198,0.20340682,54001.0,54000.0,1.14107547]
[1725665932408,0.20340682,54001.0,54000.0,1.15507547]
[1725665932651,0.185991,54001.0,54000.0,1.15507547]
[1725665933103,0.20340682,54001.0,54000.0,1.15507547]
[1725665934229,0.20340682,54001.0,54000.0,1.14107547]
[1725665934442,0.185991,54001.0,54000.0,1.14107547]
[1725665934651,0.185991,54001.0,54000.0,1.15507547]
[1725665935117,0.00081,54001.0,54000.0,1.14107547]
[1725665935336,0.00081,54001.0,54000.0,1.15507547]
[1725665935557,0.00081,54001.0,54000.0,1.15617982]
[1725665936450,0.185991,54001.0,54000.0,1.15617982]
[1725665938009,0.21502619,54001.0,54000.0,1.15617982]
[1725665938228,0.02984519,54001.0,54000.0,1.15617982]
[1725665939348,0.21502619,54001.0,54000.0,1.15617982]
[1725665939569,0.02984519,54001.0,54000.0,1.15617982]
[1725665941084,0.00081,54001.0,54000.0,1.15617982]
[1725665941820,0.185991,54001.0,54000.0,1.15617982]
[1725665942029,0.286091,54001.0,54000.0,1.15617982]
[1725665942470,1.026817,54001.0,54000.0,1.15507547]
[1725665942694,1.026817,54001.0,54000.0,1.15207547]
[1725665942918,1.39718,54001.0,54000.0,1.11907547]
[1725665943142,1.58216307,54001.0,54000.0,1.11907547]
[1725665944229,0.925942,53999.0,53998.0,0.01]
[1725665944459,1.032142,53999.0,53998.0,0.01]
[1725665944685,0.76583854,53999.0,53998.0,0.01]
[1725665944918,0.95102654,53999.0,53998.0,0.01]
[1725665946042,0.95102654,53999.0,53998.0,0.013]
[1725665946268,0.95102654,53999.0,53998.0,0.014]
[1725665946497,0.98006417,53999.0,53998.0,0.014]
[1725665947387,0.98006417,53999.0,53998.0,0.011]
[1725665947624,0.98006417,53999.0,53998.0,0.016]
[1725665949756,0.99426834,53999.0,53998.0,0.016]
[1725665952034,0.96523071,53999.0,53998.0,0.016]
[1725665954547,0.96523071,53999.0,53998.0,0.01763]
[1725665955412,0.99426838,53999.0,53998.0,0.01763]
[1725665955650,0.96523071,53999.0,53998.0,0.01763]
[1725665956548,0.85903071,53999.0,53998.0,0.01763]
[1725665958401,0.88806818,53999.0,53998.0,0.01763]
[1725665959069,0.88806818,53999.0,53998.0,0.24533]
[1725665959536,0.88806818,53999.0,53998.0,0.13923]
[1725665959985,0.96303192,53999.0,53998.0,0.13923]
[1725665960655,1.06923192,53999.0,53998.0,0.01763]
[1725665961321,0.69885492,53999.0,53998.0,0.01763]
[1725665961562,0.56361745,53999.0,53998.0,0.01763]
[1725665961793,0.93399445,53999.0,53998.0,0.01763]
[1725665962029,0.56361745,53999.0,53998.0,0.01763]
[1725665964889,0.56361745,53999.0,53998.0,0.26173]
[1725665964890,0.2142225,53999.0,53998.0,0.26173]
[1725665967251,0.2150375,53999.0,53998.0,0.26173]
[1725665967472,0.0298495,53999.0,53998.0,0.26173]
[1725665967915,0.0298495,53999.0,53998.0,0.25173]
[1725665968130,0.0298495,53999.0,53998.0,1.36680547]
[1725665968389,0.2150375,53999.0,53998.0,1.36680547]
[1725665969497,0.0298495,53999.0,53998.0,1.36680547]
[1725665970220,0.27066994,53999.0,53998.0,1.36680547]
[1725665970871,0.27066994,53999.0,53998.0,1.36180547]
[1725665971107,0.27066994,53999.0,53998.0,1.36080547]
[1725665971325,0.0348495,53999.0,53998.0,1.36080547]
[1725665972253,0.005815,53999.0,53998.0,1.37280547]
[1725665972475,0.191003,53999.0,53998.0,1.37280547]
[1725665972701,0.191003,53999.0,53998.0,1.36080547]
[1725665973159,0.191003,53999.0,53998.0,1.37380547]
[1725665974260,0.05644244,54001.0,53998.0,1.37380547]
[1725665974261,0.370364,54001.0,53998.0,1.37380547]
[1725665974495,0.370364,54001.0,53999.0,0.023]
[1725665975370,0.185187,54000.0,53999.0,0.023]
[1725665975585,0.02903523,54001.0,53999.0,0.023]
[1725665975767,0.185187,54000.0,53999.0,0.023]
[1725665976052,0.185187,54000.0,53999.0,0.034]
[1725665976262,0.185187,54000.0,53999.0,0.033]
[1725665976708,0.00089565,54000.0,53999.0,0.440286]
[1725665977669,0.00089565,54000.0,53999.0,1.551417]
[1725665978149,0.00089565,54000.0,53999.0,2.66849247]
[1725665978366,0.00089565,54000.0,53999.0,2.67749247]
[1725665978649,0.02903523,54001.0,54000.0,1.537395]
[1725665978893,0.02903523,54001.0,54000.0,1.66436782]
[1725665979830,0.02903523,54001.0,54000.0,1.67336782]
[1725665980277,0.02903523,54001.0,54000.0,1.66436782]
[1725665980511,0.02903523,54001.0,54000.0,1.67836782]
[1725665980759,0.02903523,54001.0,54000.0,1.574395]
[1725665981002,0.02903523,54001.0,54000.0,1.66436782]
[1725665981256,0.02903523,54001.0,54000.0,1.67836782]
[1725665981484,0.02903523,54001.0,54000.0,1.68736782]
[1725665981925,0.02903523,54001.0,54000.0,1.213025]
[1725665982141,0.00081,54004.0,54003.0,0.786623]
[1725665982364,0.00081,54004.0,54003.0,1.179972]
[1725665983302,0.00081,54004.0,54003.0,2.28504747]
[1725665983575,0.00081,54004.0,54003.0,2.38902029]
[1725665983811,0.00081,54004.0,54003.0,2.77336929]
[1725665984494,0.00081,54004.0,54003.0,2.75936929]
[1725665984741,0.00081,54004.0,54003.0,2.77836929]
[1725665984933,0.00081,54004.0,54003.0,2.77336929]
[1725665985433,0.00081,54004.0,54003.0,2.78336929]
[1725665986151,0.00081,54004.0,54003.0,2.76936929]
[1725665986378,0.00081,54004.0,54003.0,2.78536929]
[1725665986592,0.00081,54004.0,54003.0,2.77536929]
[1725665986818,0.00081,54004.0,54003.0,2.76136929]
[1725665987034,0.00081,54004.0,54003.0,2.75936929]
[1725665987248,0.00081,54004.0,54003.0,2.77336929]
[1725665987500,0.00081,54004.0,54003.0,2.66939647]
[1725665987734,0.02983693,54004.0,54003.0,2.75936929]
[1725665987948,0.02983693,54004.0,54003.0,2.78436929]
[1725665988163,0.02983693,54004.0,54003.0,2.77336929]
[1725665988612,0.02983693,54004.0,54003.0,2.78736929]
[1725665988898,0.02983693,54004.0,54003.0,2.77336929]
[1725665989111,0.00081,54011.0,54010.0,0.18515]
[1725665989369,0.00081,54011.0,54010.0,2.26089054]
[1725665989612,0.00081,54011.0,54010.0,1.23603854]
[1725665990547,0.00895312,54011.0,54010.0,1.25003854]
[1725665990761,0.02983772,54011.0,54010.0,1.25003854]
[1725665990974,0.03798084,54011.0,54010.0,1.23603854]
[1725665991403,0.03798084,54011.0,54010.0,1.24303854]
[1725665992075,0.00081,54011.0,54010.0,1.24303854]
[1725665992520,0.00081,54011.0,54010.0,1.23603854]
[1725665992942,0.00081,54011.0,54010.0,1.25003854]
[1725665993598,0.00081,54011.0,54010.0,1.23603854]
[1725665993809,0.00081,54011.0,54010.0,1.25003854]
[1725665995411,0.185957,54011.0,54010.0,1.25003854]
[1725665996707,0.370282,54013.0,54010.0,1.25003854]
[1725665996926,0.28068847,54014.0,54013.0,0.01]
[1725665997151,0.28068847,54014.0,54013.0,0.033]
[1725665997152,0.46582547,54014.0,54013.0,0.033]
[1725665998045,0.86513096,54014.0,54013.0,0.033]
[1725665998935,0.49485296,54014.0,54013.0,0.033]
[1725665999598,0.96033096,54014.0,54013.0,0.033]
[1725665999812,0.96033096,54014.0,54013.0,0.045]
[1725666001293,0.49485296,54014.0,54013.0,1.12023854]
[1725666002150,0.46582547,54014.0,54013.0,1.12023854]
[1725666002611,1.20637347,54014.0,54013.0,1.12023854]
[1725666002858,1.3426105,54014.0,54013.0,1.12023854]
[1725666003110,1.3434255,54014.0,54013.0,1.11023854]
[1725666003774,1.30238847,54014.0,54013.0,1.08723854]
[1725666007192,1.30238847,54014.0,54013.0,0.012]
[1725666007421,1.35784056,54014.0,54013.0,0.012]
[1725666007649,1.30238847,54014.0,54013.0,0.012]
[1725666008562,1.33141768,54014.0,54013.0,0.012]
[1725666008797,1.38686977,54014.0,54013.0,0.012]
[1725666009049,1.33141768,54014.0,54013.0,0.012]
[1725666010386,1.38691208,54014.0,54013.0,0.012]
[1725666010674,1.33141768,54014.0,54013.0,0.012]
[1725666011358,1.94217767,54014.0,54013.0,0.012]
[1725666011588,1.96985289,54014.0,54013.0,0.012]
[1725666012055,1.85764554,54014.0,54013.0,0.012]
[1725666012499,1.395227,54007.0,54006.0,0.01]
[1725666012721,1.395227,54007.0,54006.0,0.033]
[1725666013165,1.395227,54007.0,54006.0,1.10823854]
[1725666015224,1.403227,54007.0,54006.0,1.10923854]
[1725666015442,1.43225815,54007.0,54006.0,1.10923854]
[1725666015656,1.43225815,54007.0,54006.0,1.11723854]
[1725666016092,1.43225815,54007.0,54006.0,1.10923854]
[1725666016312,1.33315815,54007.0,54006.0,1.11523854]
[1725666016741,1.32515815,54007.0,54006.0,1.11423854]
[1725666017192,1.33515815,54007.0,54006.0,1.10823854]
[1725666017638,1.34615815,54007.0,54006.0,1.10823854]
[1725666018782,1.36052898,54007.0,54006.0,1.10823854]
[1725666019201,1.36052898,54007.0,54006.0,0.038]
[1725666021401,1.36052898,54007.0,54006.0,0.1682]
[1725666026956,1.36052898,54007.0,54006.0,0.038]
[1725666027178,1.45912898,54007.0,54006.0,0.038]
[1725666028234,1.43009783,54007.0,54006.0,0.038]
[1725666028446,1.33149783,54007.0,54006.0,0.038]
[1725666028677,1.33149783,54007.0,54006.0,0.039628]
[1725666030404,1.47034226,54007.0,54006.0,0.039628]
[1725666031080,1.47034226,54007.0,54006.0,1.11486654]
[1725666031410,1.33149783,54007.0,54006.0,1.11486654]
[1725666031624,1.37868846,54007.0,54006.0,1.11486654]
[1725666031856,1.43425844,54007.0,54006.0,1.11486654]
[1725666032100,1.37868846,54007.0,54006.0,1.11486654]
[1725666032331,1.84761046,54007.0,54006.0,0.006628]
[1725666032576,2.01478925,54007.0,54006.0,0.006628]
[1725666032793,2.12468639,54007.0,54006.0,0.006628]
[1725666034055,1.80259723,54007.0,54006.0,0.006628]
[1725666034233,1.81857944,54007.0,54006.0,0.006628]
[1725666034435,1.92255226,54007.0,54006.0,0.006628]
[1725666035449,1.95158362,54007.0,54006.0,0.006628]
[1725666035657,1.92255226,54007.0,54006.0,0.006628]
[1725666036072,2.03370599,54007.0,54006.0,0.006628]
[1725666036274,1.92255226,54007.0,54006.0,0.006628]
[1725666036461,2.03370599,54007.0,54006.0,0.006628]
[1725666037230,1.92255226,54007.0,54006.0,0.006628]
[1725666037427,2.03370599,54007.0,54006.0,0.006628]
[1725666037633,2.03370005,54007.0,54006.0,0.006628]
[1725666038469,2.06273328,54007.0,54006.0,0.006628]
[1725666039677,2.24771635,54007.0,54006.0,0.006628]
[1725666039910,2.06273328,54007.0,54006.0,0.006628]
[1725666041303,1.95158549,54007.0,54006.0,0.006628]
[1725666041489,2.06273328,54007.0,54006.0,0.006628]
[1725666042201,2.03370005,54007.0,54006.0,0.006628]
[1725666042897,2.03370287,54007.0,54006.0,0.006628]
[1725666043792,2.19966976,54007.0,54006.0,0.006628]
[1725666044008,2.03370287,54007.0,54006.0,0.006628]
[1725666044272,1.92255226,54007.0,54006.0,0.006628]
[1725666045385,1.9515855,54007.0,54006.0,0.006628]
[1725666045632,1.46083842,54007.0,54006.0,0.151128]
[1725666045863,1.46083221,54007.0,54006.0,0.151128]
[1725666046076,1.34965744,54007.0,54006.0,0.151128]
[1725666046299,1.66551248,54007.0,54006.0,0.006628]
[1725666046564,1.80448871,54007.0,54006.0,0.006628]
[1725666047574,1.66551248,54007.0,54006.0,0.006628]
[1725666047824,1.55813026,54007.0,54006.0,0.006628]
[1725666048414,1.58716312,54007.0,54006.0,0.006628]
[1725666048616,1.95748512,54007.0,54006.0,0.006628]
[1725666048829,1.58716312,54007.0,54006.0,0.006628]
[1725666051147,1.95748512,54007.0,54006.0,0.006628]
[1725666051388,1.58716312,54007.0,54006.0,0.006628]
[1725666051633,1.95748512,54007.0,54006.0,0.006628]
[1725666052099,1.92845226,54007.0,54006.0,0.006628]
[1725666052539,1.45363026,54007.0,54006.0,0.006628]
[1725666053325,1.82395226,54007.0,54006.0,0.006628]
[1725666058268,1.85298551,54007.0,54006.0,0.006628]
[1725666062214,1.82395226,54007.0,54006.0,0.006628]
[1725666062421,1.59269523,54007.0,54006.0,0.006628]
[1725666062656,1.45363026,54007.0,54006.0,0.006628]
[1725666062880,1.82395226,54007.0,54006.0,0.006628]
[1725666063363,1.82395226,54007.0,54006.0,0.128128]
[1725666063364,0.97933544,54007.0,54006.0,0.128128]
[1725666063595,1.06277273,54007.0,54006.0,0.256428]
[1725666063815,1.34965744,54007.0,54006.0,0.256428]
[1725666064261,1.35047244,54007.0,54006.0,0.256428]
[1725666064487,1.4339062,54007.0,54006.0,0.256428]
[1725666064720,1.35047244,54007.0,54006.0,0.256428]
[1725666064943,1.43390645,54007.0,54006.0,0.256428]
[1725666065156,1.46172217,54007.0,54006.0,0.256428]
[1725666065366,1.50812405,54007.0,54006.0,0.256428]
[1725666065585,1.53715578,54007.0,54006.0,0.256428]
[1725666067576,1.05558405,54007.0,54006.0,0.256428]
[1725666068260,1.42590605,54007.0,54006.0,0.256428]
[1725666068508,1.4907539,54007.0,54006.0,0.256428]
[1725666069959,1.37950417,54007.0,54006.0,0.256428]
[1725666070665,1.00918217,54007.0,54006.0,0.256428]
[1725666071111,1.37950417,54007.0,54006.0,0.256428]
[1725666071531,0.98015044,54007.0,54006.0,0.256428]
[1725666072263,1.06363352,54007.0,54006.0,0.256428]
[1725666072479,0.98015044,54007.0,54006.0,0.256428]
[1725666072945,1.4696821,54007.0,54006.0,0.151128]
[1725666073389,1.60882279,54007.0,54006.0,0.151128]
[1725666073835,1.4696821,54007.0,54006.0,0.151128]
[1725666074254,1.60882279,54007.0,54006.0,0.151128]
[1725666074875,1.63785467,54007.0,54006.0,0.151128]
[1725666075091,1.60882279,54007.0,54006.0,0.151128]
[1725666075765,1.48961313,54007.0,54006.0,0.151128]
[1725666076665,1.48968916,54007.0,54006.0,0.151128]
[1725666077619,1.35047244,54007.0,54006.0,0.151128]